Company(T),Trans.date,Supplier Name(T),TransNo,Amount,Irrecoverable VAT,Service/Dept(T),Procurement Category,Account code,Account code(T),Narrative/Purpose of Spend,Govt Procurement  Card
East Cambridgeshire District Council,28/04/2017,Redacted Personal Data,5106349,635.91,,National Practitioner Support Programme,Employees,1051,Staff Travelling,Travel,Y
East Cambridgeshire District Council,28/04/2017,Redacted Personal Data,5106349,155.2,,National Practitioner Support Programme,Employees,1052,Staff Subsistence,Lunch & Meetings,Y
East Cambridgeshire District Council,13/04/2017,Senitor Associates Limited,638519,"15,000.00",,Information Technology,Employees,1121,Recruitment Agency Fees,Redacted Personal Data,
East Cambridgeshire District Council,01/04/2017,Association of Electoral Administrators Ltd,638375,961,,Training,Employees,1135,Training - External,4 Day Course - Redacted Personal Data 19/6/17,
East Cambridgeshire District Council,28/04/2017,CIEH,5106349,284,,Training,Employees,1135,Training - External,HHSRS Redacted Personal Data,Y
East Cambridgeshire District Council,11/04/2017,C D Clowe,638436,"1,178.10",,Travellers Site - Earith Bridge,Premises,2020,Premises Contract Work,EICR reports Earith Bridge,
East Cambridgeshire District Council,13/04/2017,Cambridge Door Services Ltd,638475,851.5,,The Grange,Premises,2020,Premises Contract Work,Repairs to side barrier at the Grange,
East Cambridgeshire District Council,28/04/2017,Pickerings Europe Ltd,638557,623.28,,The Grange,Premises,2020,Premises Contract Work,The Annexe - Replacement Alarm Sounder,
East Cambridgeshire District Council,11/04/2017,C D Clowe,638437,887.4,,Travellers Site - Wentworth,Premises,2030,Premises Asset Management,EICR Wentworth TS,
East Cambridgeshire District Council,26/04/2017,Dal Rod,638533,"34,908.00",,Travellers Site - Wentworth,Premises,2030,Premises Asset Management,Wentworth Travellers Site - Interim Payment,
East Cambridgeshire District Council,27/04/2017,Constant Cooling Ltd,638554,502,,The Grange,Premises,2030,Premises Asset Management,Server Rooms The Grange,
East Cambridgeshire District Council,06/04/2017,E.ON UK plc,1136824,"1,207.22",,Parking Of Vehicles,Premises,2110,Electricity,011397609520 St/lighting-Car Parks,
East Cambridgeshire District Council,06/04/2017,Total Gas and Power Limited,1136838,882.24,,E Space North,Premises,2110,Electricity,3004663222 ESpace North,
East Cambridgeshire District Council,06/04/2017,Total Gas and Power Limited,1136840,"1,808.19",,The Grange,Premises,2110,Electricity,3004663200 The Grange,
East Cambridgeshire District Council,13/04/2017,Total Gas and Power Limited,1136901,"1,914.95",,The Grange,Premises,2110,Electricity,3004663200 The Grange,
East Cambridgeshire District Council,20/04/2017,ESPO,1137003,512.98,,The Grange,Premises,2120,Gas,M040A0173612A6 The Grange,
East Cambridgeshire District Council,01/04/2017,East Cambs District Council,1136728,"1,234.90",,"PC Causeway, Burwell",Premises,2310,General Rates,900014468 Public Toilets R/O Library The Causeway Burwell,
East Cambridgeshire District Council,01/04/2017,East Cambs District Council,1136729,"22,215.60",,Parking Of Vehicles,Premises,2310,General Rates,907803258 Car Park Barton Road,
East Cambridgeshire District Council,01/04/2017,East Cambs District Council,1136730,"2,306.70",,"PC Newnham Street, Ely",Premises,2310,General Rates,901375009 Public Toilets Newnham Street Ely,
East Cambridgeshire District Council,01/04/2017,East Cambs District Council,1136731,"3,436.01",,"PC Cloisters, Ely",Premises,2310,General Rates,907731812 Public Toilets The Cloisters Ely,
East Cambridgeshire District Council,01/04/2017,East Cambs District Council,1136732,"3,448.40",,"PC Barton Road, Ely",Premises,2310,General Rates,900021121 Public Toilets Barton Road Ely,
East Cambridgeshire District Council,01/04/2017,East Cambs District Council,1136734,"11,385.49",,Parking Of Vehicles,Premises,2310,General Rates,900021341 Car Park Ship Lane Ely,
East Cambridgeshire District Council,01/04/2017,East Cambs District Council,1136735,932,,"PC Palace Green, Ely",Premises,2310,General Rates,900021118 Public Toilets Palace Green Ely,
East Cambridgeshire District Council,01/04/2017,East Cambs District Council,1136736,"16,310.00",,Thursday Market,Premises,2310,General Rates,900019735 Market Place Ely,
East Cambridgeshire District Council,01/04/2017,East Cambs District Council,1136738,"20,132.89",,Parking Of Vehicles,Premises,2310,General Rates,900020986 Car Park Newnham Street Ely,
East Cambridgeshire District Council,01/04/2017,East Cambs District Council,1136739,"13,662.59",,Portley Hill Littleport Depot,Premises,2310,General Rates,907135023 Portley Hill Depot Ely Road Littleport,
East Cambridgeshire District Council,01/04/2017,East Cambs District Council,1136740,"32,541.23",,Parking Of Vehicles,Premises,2310,General Rates,900021613 Car Park Broad Street Ely,
East Cambridgeshire District Council,01/04/2017,East Cambs District Council,1136741,"1,451.42",,Parking Of Vehicles,Premises,2310,General Rates,902133046 Car Park Fountain Lane Soham,
East Cambridgeshire District Council,01/04/2017,East Cambs District Council,1136742,"1,892.05",,E Space South,Premises,2310,General Rates,907812304 Unit 15 ESpace South,
East Cambridgeshire District Council,01/04/2017,East Cambs District Council,1136743,"1,444.60",,"PC Main Street, Littleport",Premises,2310,General Rates,907373021 Public Toilets Main Street Littleport,
East Cambridgeshire District Council,01/04/2017,East Cambs District Council,1136744,"4,561.60",,Parking Of Vehicles,Premises,2310,General Rates,900427000 Car Park R/O Main Street Littleport,
East Cambridgeshire District Council,01/04/2017,East Cambs District Council,1136745,"1,234.90",,"PC Fountain Lane, Soham",Premises,2310,General Rates,900764103 Public Toilets Fountain Lane Soham,
East Cambridgeshire District Council,01/04/2017,East Cambs District Council,1136746,"2,804.10",,"PC Ship Lane, Ely",Premises,2310,General Rates,902132063 Public Toilets Ship Lane Ely,
East Cambridgeshire District Council,01/04/2017,East Cambs District Council,1136748,"7,775.46",,Parking Of Vehicles,Premises,2310,General Rates,901221030 Car Park Adj 18 St Marys Street Ely,
East Cambridgeshire District Council,01/04/2017,East Cambs District Council,1136749,"8,682.60",,Oliver Cromwell House,Premises,2310,General Rates,901210106 Museum & Offices 29 St Marys Street Ely,
East Cambridgeshire District Council,01/04/2017,East Cambs District Council,1136754,"102,165.22",,The Grange,Premises,2310,General Rates,907782311 The Grange Nutholt Lane Ely,
East Cambridgeshire District Council,01/04/2017,East Cambs District Council,1136755,"8,034.64",,E Space North,Premises,2310,General Rates,907780436 ESpace North,
East Cambridgeshire District Council,01/04/2017,East Cambs District Council,1136756,"20,410.58",,Angel Drove Commuters Car Park,Premises,2310,General Rates,907776107 Car Park Angel Drove Ely,
East Cambridgeshire District Council,01/04/2017,East Cambs District Council,1136757,"2,352.30",,E Space North,Premises,2310,General Rates,907812647 Unit 18 ESpace North,
East Cambridgeshire District Council,01/04/2017,East Cambs District Council,1136758,"3,058.35",,E Space North,Premises,2310,General Rates,907808716 Unit 10 Espace North,
East Cambridgeshire District Council,01/04/2017,East Cambs District Council,1136759,"1,939.95",,E Space South,Premises,2310,General Rates,907811716 Unit 1 ESpace South,
East Cambridgeshire District Council,01/04/2017,East Cambs District Council,1136760,"3,153.25",,E Space North,Premises,2310,General Rates,907812605 Unit 2 ESpace North,
East Cambridgeshire District Council,03/04/2017,East Cambs District Council,1136791,534.24,,E Space North,Premises,2310,General Rates,907815246 Unit 17A ESpace North,
East Cambridgeshire District Council,01/04/2017,Environment Agency,1136761,"1,026.00",,Travellers Site - Earith Bridge,Premises,2411,Sewerage Charge,Earith Bridge Travellers Site 1/4/17-31/3/18,
East Cambridgeshire District Council,10/04/2017,Dal Rod,638420,565,,"PC Main Street, Littleport",Premises,2820,Grounds Contract Work,Littleport Public Toilets - Empty Pump Pit,
East Cambridgeshire District Council,10/04/2017,Metro Rod,638443,560,,Miscellaneous Properties,Premises,2820,Grounds Contract Work,"Tanker works, Market Sq",
East Cambridgeshire District Council,13/04/2017,Metro Rod,638470,550,,Parking Of Vehicles,Premises,2820,Grounds Contract Work,Clay Street Car Park,
East Cambridgeshire District Council,12/04/2017,Metro Rod,638471,575,,Parking Of Vehicles,Premises,2820,Grounds Contract Work,Ship Lane Car Park,
East Cambridgeshire District Council,28/04/2017,Barricade Ltd,638553,575,,Parks And Open Spaces,Premises,2820,Grounds Contract Work,Lock Replacement & Service,
East Cambridgeshire District Council,05/04/2017,Be Fuelcards,1136846,557.01,,General Gang,Transport,3021,Derv,Fuelcards March 2017,
East Cambridgeshire District Council,05/04/2017,Be Fuelcards,1136846,999.22,,Parks And Open Spaces,Transport,3021,Derv,Fuelcards March 2017,
East Cambridgeshire District Council,26/04/2017,Cale Briparc Ltd,638531,"3,170.00",,Angel Drove Commuters Car Park,Supplies and Services,4010,Equipment - Purchases,,
East Cambridgeshire District Council,05/04/2017,NVCS Ltd,1136804,546,,The Grange,Supplies and Services,4012,Equipment - Vending Machines,Crane Stentorfield Food Machine 4/4/17-30/4/18,
East Cambridgeshire District Council,03/04/2017,Highfield Event Group Ltd,638397,597.46,,Marketing & Grants,Supplies and Services,4013,Equipment - Hire,Event 30/4-1/5/17,
East Cambridgeshire District Council,01/04/2017,PHS Group Plc,1136776,515.57,,The Grange,Supplies and Services,4013,Equipment - Hire,21053 The Grange 1/4/17-31/3/18,
East Cambridgeshire District Council,01/04/2017,PHS Group Plc,1136779,"1,422.48",,"PC Ship Lane, Ely",Supplies and Services,4013,Equipment - Hire,149934 Public Toilets Ship Lane Ely 1/4/17-31/3/18,
East Cambridgeshire District Council,01/04/2017,PHS Group Plc,1136780,"1,001.32",,"PC Palace Green, Ely",Supplies and Services,4013,Equipment - Hire,153995 Public Toilets Palace Green Ely 1/4/17-31/3/18,
East Cambridgeshire District Council,01/04/2017,PHS Group Plc,1136781,"2,144.81",,"PC Cloisters, Ely",Supplies and Services,4013,Equipment - Hire,323503 Public Toilets The Cloisters Ely 1/4/17-31/3/18,
East Cambridgeshire District Council,01/04/2017,PHS Group Plc,1136782,"1,907.56",,"PC Barton Road, Ely",Supplies and Services,4013,Equipment - Hire,138825 Public Toilets Barton Road Ely 1/4/17-31/3/18,
East Cambridgeshire District Council,26/04/2017,Konica Minolta Business Solutions East Ltd,1137097,"2,710.78",,Printing/Copying,Supplies and Services,4013,Equipment - Hire,Copy charges 1/2/17-30/4/17,
East Cambridgeshire District Council,01/04/2017,Canon (UK) Ltd,1136725,"1,661.08",,Printing/Copying,Supplies and Services,4014,Equipment - Maint. Agreements,Service 1/4/17-/3/18,
East Cambridgeshire District Council,01/04/2017,Neopost Ltd,1136772,572.17,,DMS,Supplies and Services,4014,Equipment - Maint. Agreements,Totalcare 16/4/17-15/4/18,
East Cambridgeshire District Council,20/04/2017,Sutton Parish Council,638500,"31,505.11",,Community Projects & Grants,Supplies and Services,4015,S106 Spend,S106 Grant,
East Cambridgeshire District Council,20/04/2017,Sutton Parish Council,638501,"3,626.75",,Community Projects & Grants,Supplies and Services,4015,S106 Spend,Final claim of grant,
East Cambridgeshire District Council,03/04/2017,Institute of Groundsmanship (IOG),638512,"2,850.00",,Parks And Open Spaces,Supplies and Services,4015,S106 Spend,"Marking Out 5/4/17, Machinery 12/4/17 & Bespoke 19/4/17",
East Cambridgeshire District Council,12/04/2017,Park Retail Ltd t/as Love2Reward,638467,"1,029.00",,Recycling Reward Scheme,Supplies and Services,4030,Materials - Purchase,,
East Cambridgeshire District Council,21/04/2017,Bunzl  Cleaning & Hygiene Supplies,638509,"1,509.78",,Cleaning,Supplies and Services,4030,Materials - Purchase,,
East Cambridgeshire District Council,28/04/2017,ID Management,5106349,41.95,,The Grange,Supplies and Services,4030,Materials - Purchase,Badge Holders,Y
East Cambridgeshire District Council,01/04/2017,Breckland Council,638376,"1,439.34",,Corp.Man.Policy Research/Review,Supplies and Services,4310,Printing & Stationery,Leaflet Insert for Council Tax Bills for 2017/18,
East Cambridgeshire District Council,22/04/2017,Corporate Mailing Solutions,638511,"77,874.26",,Combined Authority Mayoral Elections,Supplies and Services,4310,Printing & Stationery,Mayoral Elections Mailing,
East Cambridgeshire District Council,28/04/2017,Colourbyte,5106349,63.95,,Printing/Copying,Supplies and Services,4310,Printing & Stationery,Banner ,Y
East Cambridgeshire District Council,28/04/2017,Office Monster,5106349,327.4,,Homelessness,Supplies and Services,4310,Printing & Stationery,Files,Y
East Cambridgeshire District Council,28/04/2017,Trade Print,5106349,30.97,,Printing/Copying,Supplies and Services,4310,Printing & Stationery,Banner ,Y
East Cambridgeshire District Council,06/04/2017,Wolters Kluwer (UK) Ltd,1136844,969.94,,Payroll,Supplies and Services,4320,Publications & books,CCH Payroll Information Services 1/5/17-30/4/18,
East Cambridgeshire District Council,07/04/2017,Lexisnexis UK,1136856,912.51,,Legal,Supplies and Services,4320,Publications & books,Oake Magisterial Formulist 20ED,
East Cambridgeshire District Council,04/04/2017,The Oyster Partnership,638398,"1,216.00",,Planning,Supplies and Services,4401,Agency Workers,Redacted Personal Data W/C 27/3/17,
East Cambridgeshire District Council,19/04/2017,The Oyster Partnership,638515,"1,681.50",,Planning,Supplies and Services,4401,Agency Workers,Redacted Personal Data - Week Ending 03/4/17 & 10/4/17,
East Cambridgeshire District Council,01/04/2017,G4S Cash Solutions (UK) Ltd,1136764,822.99,,Angel Drove Commuters Car Park,Supplies and Services,4412,Courier Service,Contract 3342504 1/4/17-30/4/17,
East Cambridgeshire District Council,13/04/2017,G4S Cash Solutions (UK) Ltd,1136895,822.99,,Angel Drove Commuters Car Park,Supplies and Services,4412,Courier Service,Contract 3342504 1/5/17-31/5/17,
East Cambridgeshire District Council,26/04/2017,Mr Tim Corcoran,638558,600,,Marketing & Grants,Supplies and Services,4418,Entertainers,Live Performance at Ely Food & Drink,
East Cambridgeshire District Council,10/04/2017,Cambridgeshire County Council,1136852,"16,714.00",,Land Charges Admin,Supplies and Services,4420,Inquiries,Searches Information for Local Services - Quarter 4 1/1/17-31/3/17,
East Cambridgeshire District Council,03/04/2017,Cheffins Client Account,638434,"1,050.00",,Homelessness,Supplies and Services,4421,Sanctuary Homelessness/Rent Deposit,Deposit Redacted Personal Data,
East Cambridgeshire District Council,12/04/2017,Aitus Residential Ltd,638446,575,,Homelessness,Supplies and Services,4421,Sanctuary Homelessness/Rent Deposit,Redacted Personal Data Room 4,
East Cambridgeshire District Council,18/04/2017,Cheffins Client Account,638490,862.5,,Homelessness,Supplies and Services,4421,Sanctuary Homelessness/Rent Deposit,Redacted Personal Data,
East Cambridgeshire District Council,18/04/2017,Wilson & Betts,638498,"1,200.00",,Homelessness,Supplies and Services,4421,Sanctuary Homelessness/Rent Deposit,Redacted Personal Data,
East Cambridgeshire District Council,20/04/2017,Peter Michael Estate Agents Ltd,638499,"1,350.00",,Homelessness,Supplies and Services,4421,Sanctuary Homelessness/Rent Deposit,Redacted Personal Data,
East Cambridgeshire District Council,27/04/2017,Mr P J Clover,638543,600,,Homelessness,Supplies and Services,4421,Sanctuary Homelessness/Rent Deposit,Redacted Personal Data,
East Cambridgeshire District Council,13/04/2017,Sanctuary Group,1136896,"3,384.32",,Homelessness,Supplies and Services,4423,Hostel Charges/Voids,Void Charges for Period 1/1/17-2/4/17 forRedacted Personal Data,
East Cambridgeshire District Council,13/04/2017,Sanctuary Group,1136897,"2,756.32",,Homelessness,Supplies and Services,4423,Hostel Charges/Voids,Void Charges for Period 1/1/17-2/4/17 for Redacted Personal Data,
East Cambridgeshire District Council,13/04/2017,Sanctuary Group,1136898,"2,861.10",,Homelessness,Supplies and Services,4423,Hostel Charges/Voids,Void Charges for Period 1/1/17-2/4/17 for Redacted Personal Data,
East Cambridgeshire District Council,13/04/2017,Sanctuary Group,1136899,566.44,,Homelessness,Supplies and Services,4423,Hostel Charges/Voids,Void Charges for Period 1/1/17-2/4/17 for Redacted Personal Data,
East Cambridgeshire District Council,07/04/2017,AmeyCespa (East) Limited,638414,551.2,,Sanctuary Grasscutting,Supplies and Services,4428,Tipping Fees,,
East Cambridgeshire District Council,03/04/2017,Hester Management Services Ltd,638391,"8,855.00",,Waste Service Review,Supplies and Services,4430,Consultants Fees,Weaste Insourcing Project - Initial Consultancy Advice,
East Cambridgeshire District Council,12/04/2017,Instant Offices Limited,638455,"1,812.00",,E Space South,Supplies and Services,4430,Consultants Fees,Diocese of Ely Multi academy 10% of years rent 3/4/17 to 2/4/18,
East Cambridgeshire District Council,12/04/2017,Hays Human Resources,638463,"1,260.00",,Finance - Accountancy,Supplies and Services,4430,Consultants Fees,Redacted Personal Data - Week Ending 24/3/17,
East Cambridgeshire District Council,12/04/2017,Hays Human Resources,638464,"1,260.00",,Finance - Accountancy,Supplies and Services,4430,Consultants Fees,Redacted Personal Data - Week Ending 31/3/17,
East Cambridgeshire District Council,21/04/2017,Mervyn Lambert Plant Ltd,638507,750,,Marketing & Grants,Supplies and Services,4430,Consultants Fees,Road closure 15/4/17,
East Cambridgeshire District Council,25/04/2017,South Cambridgeshire District Council,1137096,851.43,,Infrastructure and Strategy,Supplies and Services,4430,Consultants Fees,Home link development surcharge 2016/17,
East Cambridgeshire District Council,01/04/2017,Environmental Scientifics Group,638379,819,,Air Quality Monitoring,Supplies and Services,4434,Air Quality Monitoring,April 17-March 18,
East Cambridgeshire District Council,20/04/2017,Purchase Power,638496,"1,013.00",,E Space North,Supplies and Services,4510,Postage,Meter Reset & Transaction Fee 3/4/17,
East Cambridgeshire District Council,29/03/2017,Postage by Phone - Pitney Bowes Ltd,1136795,509,,E Space South,Supplies and Services,4510,Postage,Reset Meter 24/3/17,
East Cambridgeshire District Council,18/04/2017,Neopost Ltd,1136958,"3,650.00",,DMS,Supplies and Services,4510,Postage,Postage recredit,
East Cambridgeshire District Council,26/04/2017,Royal Mail Group plc,1137093,"1,482.48",,Combined Authority Mayoral Elections,Supplies and Services,4510,Postage,Postal voting 19/4/17,
East Cambridgeshire District Council,26/04/2017,Royal Mail Group plc,1137093,"1,482.48",,County Council Elections,Supplies and Services,4510,Postage,Postal voting 19/4/17,
East Cambridgeshire District Council,31/03/2017,Ip-Xchange Ltd,1136793,"1,988.53",,E Space North,Supplies and Services,4520,Telephone,ESpace North,
East Cambridgeshire District Council,31/03/2017,Ip-Xchange Ltd,1136794,"1,177.80",,E Space South,Supplies and Services,4520,Telephone,ESpace South,
East Cambridgeshire District Council,10/04/2017,Daisy Corporate Services,1136849,"4,286.03",,Information Technology,Supplies and Services,4520,Telephone,,
East Cambridgeshire District Council,03/04/2017,Virgin Media Payments - 923467,1136797,"1,634.14",,Information Technology,Supplies and Services,4522,Contributions (IT Only CCN),Account Number 923467,
East Cambridgeshire District Council,19/04/2017,Local World Ltd - Cambridge Newspapers,638505,567,,Planning,Supplies and Services,4532,T&C Planning Act Adverts,Cambridge news 13/4/17,
East Cambridgeshire District Council,03/04/2017,Limelight Celebrity Management,638396,"2,000.00",,Marketing & Grants,Supplies and Services,4540,Promotion Costs,Redacted Personal Data Ely F & D 1/5/17,
East Cambridgeshire District Council,07/04/2017,Take One Media Ltd,638431,"2,296.00",,Marketing & Grants,Supplies and Services,4540,Promotion Costs,Distribution & Display of Ely A5 Visitor Guide 2016,
East Cambridgeshire District Council,12/04/2017,Sieve Creative,638459,"1,000.00",,Economic Development Admin,Supplies and Services,4540,Promotion Costs,SEP Landscape Video presentation - Part 1,
East Cambridgeshire District Council,01/04/2017,Exacom Systems Ltd,638380,"8,257.76",,CIL - Admin,Supplies and Services,4550,IT Licences,Annual Maintenance & Support 2017-18,
East Cambridgeshire District Council,03/04/2017,Phoenix Software Ltd,638399,"30,803.63",,Information Technology,Supplies and Services,4550,IT Licences,,
East Cambridgeshire District Council,31/03/2017,Idox Software Limited,638400,"26,910.64",,Information Technology,Supplies and Services,4550,IT Licences,Year 1 Software & Main,
East Cambridgeshire District Council,10/04/2017,Coolspirit Ltd,638445,"5,107.76",,Information Technology,Supplies and Services,4550,IT Licences,Arcserve UDP Cloud Storage,
East Cambridgeshire District Council,10/04/2017,Daisy Corporate Services,638481,"5,198.55",,Information Technology,Supplies and Services,4550,IT Licences,Mitel Maint charge 6/4/17-5/4/18,
East Cambridgeshire District Council,24/11/2016,Idox Software Limited,638485,"15,000.00",,Information Technology,Supplies and Services,4550,IT Licences,50% completion IDOX EDRMS,
East Cambridgeshire District Council,01/04/2017,Frontier Software Plc,1136763,"9,691.64",,Information Technology,Supplies and Services,4550,IT Licences,Chris21 Software & Maintenance - Year Ending 2/4/18,
East Cambridgeshire District Council,01/04/2017,Idox Software Limited,1136767,"12,140.60",,Information Technology,Supplies and Services,4550,IT Licences,Strabd Selcheck Maint & Strand Sems/Elreg Maint 1/4/17-31/3/18,
East Cambridgeshire District Council,01/04/2017,Northgate Public Services (UK) Ltd,1136773,"3,352.40",,Information Technology,Supplies and Services,4550,IT Licences,Paris Maintenance 1/4/17-31/3/18,
East Cambridgeshire District Council,01/04/2017,Northgate Public Services (UK) Ltd,1136774,"4,865.53",,Information Technology,Supplies and Services,4550,IT Licences,Paris Software 1/4/17-31/3/18,
East Cambridgeshire District Council,26/04/2017,Northgate Public Services (UK) Ltd,1137102,800,,Information Technology,Supplies and Services,4550,IT Licences,Software Support 2/6/17-1/6/18 - Paris Bureau,
East Cambridgeshire District Council,28/04/2017,123 Reg,5106349,155.76,,National Practitioner Support Programme,Supplies and Services,4550,IT Licences,email services,Y
East Cambridgeshire District Council,28/04/2017,123 Reg,5106349,287.63,,National Practitioner Support Programme,Supplies and Services,4550,IT Licences,website hosting,Y
East Cambridgeshire District Council,28/04/2017,Wordpress,5106349,85,,National Practitioner Support Programme,Supplies and Services,4550,IT Licences,website fee,Y
East Cambridgeshire District Council,28/04/2017,Google,5106349,39.6,,National Practitioner Support Programme,Supplies and Services,4550,IT Licences,SVCapps,Y
East Cambridgeshire District Council,01/04/2017,DTP Group Ltd,638377,"4,341.60",,Information Technology,Supplies and Services,4551,Hardware Purchases/Maint,HPE Foundation Care CTR SVC,
East Cambridgeshire District Council,06/04/2017,Viva,638432,"5,000.00",,Community Land Trusts,Supplies and Services,4710,Grants,CLT Grant,
East Cambridgeshire District Council,03/04/2017,The Royal Borough of Kensington & Chelsea Council,638407,"6,336.00",,National Practitioner Support Programme,Supplies and Services,4713,Grants - Contributions,Q4 Salary Costs for DCLG Funded NPSS Post,
East Cambridgeshire District Council,27/04/2017,AlterEgo Creative Solutions Ltd,638551,"3,832.00",,Community Safety,Supplies and Services,4713,Grants - Contributions,Tough Love DVA Play - Week Commencing 2/5/17,
East Cambridgeshire District Council,06/04/2017,Cambridgeshire Acre,638416,"2,000.00",,Infrastructure and Strategy,Supplies and Services,4723,Grants - Rural Housing Enabler,Cambridgeshire Affordable Housing Service 2017/18,
East Cambridgeshire District Council,12/04/2017,Burwell Community Sports Centre Ltd,638461,"5,290.80",,Sports Co-ord (Leisure Centre & Sports Facs SLA/Investment),Supplies and Services,4730,Grants - Sports Dec,PVC Window Replacement & Disabled Ramp,
East Cambridgeshire District Council,20/04/2017,Freight Transport Association,638491,"1,045.00",,Refuse Collection,Supplies and Services,4780,Subscriptions - General,Annual Membership Starting April 2017,
East Cambridgeshire District Council,20/04/2017,Keep Britain Tidy,638502,"1,995.00",,Street Cleansing,Supplies and Services,4780,Subscriptions - General,KBT Network Memb 18/4/17-17/4/18,
East Cambridgeshire District Council,01/04/2017,CIPFA Business Ltd,1136727,624,,Finance - Accountancy,Supplies and Services,4780,Subscriptions - General,TISonline Take 5 1/4/17-31/3/18,
East Cambridgeshire District Council,01/04/2017,Grant Thornton UK LLP,1136765,"2,500.00",,Economic Development Admin,Supplies and Services,4780,Subscriptions - General,Plave Analytics Licence April 17-March 18,
East Cambridgeshire District Council,07/04/2017,North Kesteven District Council,1136853,"2,177.00",,Corp.Man.Policy Research/Review,Supplies and Services,4780,Subscriptions - General,Rural Services Network - Service Charges 2017/18,
East Cambridgeshire District Council,28/04/2017,Google apps,5106349,6.6,,LATC,Supplies and Services,4780,Subscriptions - General,Subscriptions,Y
East Cambridgeshire District Council,13/04/2017,Local Government Association,638465,"8,335.30",,Corp.Man.Policy Research/Review,Supplies and Services,4781,Subscriptions - LGA,LGA Subscription 2017/18,
East Cambridgeshire District Council,01/04/2017,District Surveyors Association Ltd t/a LABC,1136768,"1,725.86",,Building Regulations Admin,Supplies and Services,4788,Subscriptions - LANTAC,LABC Service Fee 2017/18,
East Cambridgeshire District Council,06/04/2017,Lighthouse - Ely,638440,"1,000.00",,Homelessness,Supplies and Services,4910,Other Payments,Donation,
East Cambridgeshire District Council,06/04/2017,Redacted Personal Data,1136819,"2,360.00",,Marketing & Grants,Supplies and Services,4910,Other Payments,Escape Room Sessions March 2017,
East Cambridgeshire District Council,13/04/2017,Heating & Plumbing Services (Wisbech) Ltd,1136874,"3,314.40",,Home Improvement Agency Services,Supplies and Services,4938,Client Contribution,Inv No 02/17/312 - C & R Redacted Personal Data,
East Cambridgeshire District Council,13/04/2017,Trevor Benton Construction Ltd,1136888,"1,669.78",,Home Improvement Agency Services,Supplies and Services,4938,Client Contribution,C & R Redacted Personal Data,
East Cambridgeshire District Council,13/04/2017,PD Kemp Builder,1136892,"3,127.70",,Home Improvement Agency Services,Supplies and Services,4938,Client Contribution,C & R - Redacted Personal Data,
East Cambridgeshire District Council,20/04/2017,RKS Builders Ltd,1136985,"3,020.94",,Home Improvement Agency Services,Supplies and Services,4938,Client Contribution,C & R - Inv004 -Redacted Personal Data,
East Cambridgeshire District Council,25/04/2017,Trevor Benton Construction Ltd,1137013,"1,568.20",,Home Improvement Agency Services,Supplies and Services,4938,Client Contribution,C & R - Inv 05873 - Redacted Personal Data,
East Cambridgeshire District Council,25/04/2017,Richard Masham Building Services,1137018,"5,090.80",,Home Improvement Agency Services,Supplies and Services,4938,Client Contribution,C & R - Redacted Personal Data,
East Cambridgeshire District Council,06/04/2017,Prominent PR Ltd,638504,"4,500.00",,Public Relations,Third Party Payments,5010,Contracted Services,Comm delivery March 12 days,
East Cambridgeshire District Council,10/04/2017,SLM Ltd,1136864,"12,822.60",,Paradise Pool,Third Party Payments,5010,Contracted Services,NNDR,
East Cambridgeshire District Council,18/04/2017,Veolia ES (UK) Ltd,1136960,"2,182.29",,Bulk Waste,Third Party Payments,5010,Contracted Services,Collections 1/3/17-31/3/17,
East Cambridgeshire District Council,18/04/2017,Veolia ES (UK) Ltd,1136960,"30,752.50",,Recycling,Third Party Payments,5010,Contracted Services,Collections 1/3/17-31/3/17,
East Cambridgeshire District Council,18/04/2017,Veolia ES (UK) Ltd,1136960,"30,752.50",,Recycling Organic Waste,Third Party Payments,5010,Contracted Services,Collections 1/3/17-31/3/17,
East Cambridgeshire District Council,18/04/2017,Veolia ES (UK) Ltd,1136960,"72,700.93",,Refuse Collection,Third Party Payments,5010,Contracted Services,Collections 1/3/17-31/3/17,
East Cambridgeshire District Council,18/04/2017,Veolia ES (UK) Ltd,1136960,"41,115.25",,Weekly Collection Support Grant,Third Party Payments,5010,Contracted Services,Collections 1/3/17-31/3/17,
East Cambridgeshire District Council,18/04/2017,Veolia ES (UK) Ltd,1136960,"45,162.31",,Street Cleansing,Third Party Payments,5010,Contracted Services,Collections 1/3/17-31/3/17,
East Cambridgeshire District Council,07/04/2017,Breckland Council,1136851,"37,424.83",,Council Tax Collection Costs,Third Party Payments,5020,ARP Services,Monthly Provision of Services 2017/18,
East Cambridgeshire District Council,07/04/2017,Breckland Council,1136851,"44,280.75",,Housing Benefits,Third Party Payments,5020,ARP Services,Monthly Provision of Services 2017/18,
East Cambridgeshire District Council,07/04/2017,Breckland Council,1136851,"9,713.42",,NNDR Collection costs,Third Party Payments,5020,ARP Services,Monthly Provision of Services 2017/18,
East Cambridgeshire District Council,07/04/2017,Breckland Council,1136851,"-2,857.50",,Anglia Revenue Partnerships (ARP),Third Party Payments,5020,ARP Services,Monthly Provision of Services 2017/18,
East Cambridgeshire District Council,13/04/2017,Breckland Council,1136893,778,,Housing Benefits,Third Party Payments,5023,Grants Paid Over (ARP),New Burdens Funding 2016/17 Changes to Work-Related Activity Group Payments,
East Cambridgeshire District Council,13/04/2017,Breckland Council,1136894,"4,874.51",,Housing Benefits,Third Party Payments,5023,Grants Paid Over (ARP),DWP LADS IT Payment Contribution,
East Cambridgeshire District Council,13/04/2017,Prior Associates,1136878,654,,Mandatory Disabled Fac.Grant,Capital Costs,C108,Supplies & Services,C & R -Redacted Personal Data,
East Cambridgeshire District Council,12/04/2017,Pellikaan Holding (Belgie) NV,638458,"676,039.96",,Leisure Facility,Capital Costs,C201,Payments To Contractors,Leisure Centre Valuation 03,
East Cambridgeshire District Council,11/04/2017,Mace Limited,638468,"27,799.00",,Leisure Facility,Capital Costs,C301,Professional Fees,RIBA 5 - March 2017,
East Cambridgeshire District Council,11/04/2017,Mace Limited,638469,"12,486.00",,Leisure Facility,Capital Costs,C301,Professional Fees,Surveys,
East Cambridgeshire District Council,20/04/2017,Bond Dickinson LLP,638510,"4,637.80",,Leisure Facility,Capital Costs,C301,Professional Fees,Legal Services - Review of Construction Documentation,
East Cambridgeshire District Council,13/04/2017,M Watson Construction Ltd t/as MWC Group,1136873,"1,397.22",,Mandatory Disabled Fac.Grant,Capital Costs,C402,Home Imp.Grant 50% advance,Redacted Personal Data,
East Cambridgeshire District Council,06/04/2017,Stannah Lift Services Ltd,1136847,"2,928.64",,Mandatory Disabled Fac.Grant,Capital Costs,C404,Home Imp.Grant. Final payment,Redacted Personal Data,
East Cambridgeshire District Council,06/04/2017,Paul Barrow Builders  Ltd,1136848,"6,347.69",,Mandatory Disabled Fac.Grant,Capital Costs,C404,Home Imp.Grant. Final payment,Redacted Personal Data,
East Cambridgeshire District Council,13/04/2017,Heating & Plumbing Services (Wisbech) Ltd,1136875,"4,707.98",,Mandatory Disabled Fac.Grant,Capital Costs,C404,Home Imp.Grant. Final payment,Redacted Personal Data,
East Cambridgeshire District Council,13/04/2017,Handicare Accessibility Ltd,1136882,"3,651.27",,Mandatory Disabled Fac.Grant,Capital Costs,C404,Home Imp.Grant. Final payment,Redacted Personal Data,
East Cambridgeshire District Council,13/04/2017,Ashco Building & Maintenance Services Ltd,1136886,"8,533.42",,Mandatory Disabled Fac.Grant,Capital Costs,C404,Home Imp.Grant. Final payment,Redacted Personal Data,
East Cambridgeshire District Council,13/04/2017,Trevor Benton Construction Ltd,1136887,"4,181.78",,Mandatory Disabled Fac.Grant,Capital Costs,C404,Home Imp.Grant. Final payment,Redacted Personal Data,
East Cambridgeshire District Council,13/04/2017,Trevor Benton Construction Ltd,1136889,"12,541.44",,Mandatory Disabled Fac.Grant,Capital Costs,C404,Home Imp.Grant. Final payment,Redacted Personal Data,
East Cambridgeshire District Council,13/04/2017,Trevor Benton Construction Ltd,1136890,"1,347.07",,Mandatory Disabled Fac.Grant,Capital Costs,C404,Home Imp.Grant. Final payment,Redacted Personal Data,
East Cambridgeshire District Council,13/04/2017,PD Kemp Builder,1136891,"5,022.54",,Mandatory Disabled Fac.Grant,Capital Costs,C404,Home Imp.Grant. Final payment,Redacted Personal Data,
East Cambridgeshire District Council,20/04/2017,RKS Builders Ltd,1136984,"6,118.10",,Mandatory Disabled Fac.Grant,Capital Costs,C404,Home Imp.Grant. Final payment,Redacted Personal Data,
East Cambridgeshire District Council,25/04/2017,Trevor Benton Construction Ltd,1137012,"1,908.15",,Mandatory Disabled Fac.Grant,Capital Costs,C404,Home Imp.Grant. Final payment,Redacted Personal Data,
East Cambridgeshire District Council,25/04/2017,Paul Barrow Builders  Ltd,1137014,"6,706.94",,Mandatory Disabled Fac.Grant,Capital Costs,C404,Home Imp.Grant. Final payment,Redacted Personal Data,
East Cambridgeshire District Council,25/04/2017,Paul Barrow Builders  Ltd,1137016,"6,595.56",,Mandatory Disabled Fac.Grant,Capital Costs,C404,Home Imp.Grant. Final payment,Redacted Personal Data,
East Cambridgeshire District Council,25/04/2017,Richard Masham Building Services,1137017,"2,739.40",,Mandatory Disabled Fac.Grant,Capital Costs,C404,Home Imp.Grant. Final payment,Redacted Personal Data,
East Cambridgeshire District Council,25/04/2017,Man Construction Ltd,1137019,"6,355.00",,Mandatory Disabled Fac.Grant,Capital Costs,C404,Home Imp.Grant. Final payment,Redacted Personal Data,
East Cambridgeshire District Council,27/04/2017,4 Front Interiors Ltd,1137107,"1,988.46",,Mandatory Disabled Fac.Grant,Capital Costs,C404,Home Imp.Grant. Final payment,Redacted Personal Data,
East Cambridgeshire District Council,25/04/2017,"Bob Smith Heating, Plumbing & Electrical Ltd",1137023,647.2,,Home Repair Assistance,Capital Costs,C405,Home Repair Grants,Redacted Personal Data,
East Cambridgeshire District Council,25/04/2017,Richard Masham Building Services,1137024,"2,900.00",,Home Repair Assistance,Capital Costs,C405,Home Repair Grants,Redacted Personal Data,
,,,,"1,854,001.56",,,,,,,
